[Event "1st FIDE Olympiad DIS 2023"]
[Site "Belgrade"]
[Date "2023.02.03"]
[Round "5.20"]
[White "Saltik, Suleyman"]
[Black "Cajzler, Hinko"]
[Result "0-1"]
[ECO "C10"]
[WhiteElo "1687"]
[BlackElo "2060"]
[Annotator "TA"]
[PlyCount "135"]
[EventDate "2023.01.30"]
[EventType "team-tourn"]
[EventCountry "SRB"]
[SourceTitle "playchess.com"]
[Source "ChessBase"]
[SourceQuality "1"]
[WhiteTeam "Turkey"]
[BlackTeam "Croatia"]
[WhiteTeamCountry "TUR"]
[BlackTeamCountry "CRO"]
[TimeControl "40/5400+30:1800+30"]

{[%evp 15,135,38,40,29,27,0,0,-8,54,27,20,22,20,-6,-16,-7,0,-14,0,-54,-59,-42,-36,-38,-34,-50,-20,-20,-20,-18,0,-13,-15,-20,0,-60,0,0,0,-73,-31,-48,0,-1,-1,-6,-10,-14,-11,-71,-83,-114,-77,-110,-108,-209,-204,-200,-164,-159,-67,-59,-43,-103,-103,-910,-910,-1331,-1000,-1000,-992,-600,-189,-194,-159,-229,-183,-260,-133,-475,-438,-337,-329,-820,-490,-637,-526,-767,-938,-1799,-888,-691,-594,-1498,-1338,-29966,-29967,-29963,-29965,-29975,-29976,-29978,-29979,-29979,-29980,-29980,-29980,-29980,-29981,-29981,-29981,-29983,-29984,-29988,-29989,-29994,-29995,-29995,-29996,-29998,-29997,-29997]} 1. e4 {[%emt 0:00:03]} e6 {[%emt 0:00:13]} 2. d4 {[%emt 0:00:12]} d5 {[%emt 0:00:09]} 3. Nd2 {[%emt 0:00:07]} dxe4 {[%emt 0:00:08]} 4. Nxe4 {[%emt 0:00:10]} Nd7 {[%emt 0:00:46]} 5. Bd3 {[%emt 0:01:09]} Ngf6 {[%emt 0:00:18]} 6. Nxf6+ {[%emt 0:02:04]} Nxf6 {[%emt 0:00:27]} 7. Nf3 {[%emt 0:00:48]} Be7 {[%emt 0:00:28]} 8. O-O {[%emt 0:02:02]} O-O {[%emt 0:00:14]} 9. Bf4 {[%emt 0:03:03] C10: French with 3 Nc3: Unusual Black 3rd moves and 3...dxe4.} b6 {[%emt 0:02:14]} 10. a4 {[%emt 0:05:44]} Bb7 {[%emt 0:03:40]} 11. a5 {[%emt 0:04:08] [#] The position is equal.} a6 $146 {[%emt 0:00:16]} ({Black should try} 11... bxa5 $11 12. Rxa5 c5) ({Predecessor:} 11... Bxf3 12. Qxf3 Qxd4 13. Bxc7 Rac8 14. axb6 axb6 15. Bg3 Qxb2 16. Rfb1 Qd4 {½-½ Sebt Rasoul,S (2012)-Sultanbek,Z (1846) Wch FIDE Online U16 Girls Asia qual rapid 2020 (6)}) 12. Qe2 {[%emt 0:05:15]} b5 {[%emt 0:03:50]} 13. Rfd1 {[%emt 0:04:40]} Qc8 {[%emt 0:01:13]} 14. h4 {[%emt 0:11:33]} c5 {[%emt 0:00:38]} 15. c4 {[%emt 0:04:29]} bxc4 {[%emt 0:00:37]} 16. Bxc4 {[%emt 0:02:18]} Bd5 {[%emt 0:04:16]} 17. Bg5 {[%emt 0:08:01]} (17. Rac1 $11) 17... Bxc4 $1 $15 {[%emt 0:01:08]} 18. Qxc4 {[%emt 0:00:18]} cxd4 $1 {[%emt 0:00:10]} 19. Rxd4 {[%emt 0:03:48]} h6 {[%emt 0:02:38]} 20. Bd2 {[%emt 0:02:54]} Bc5 {[%emt 0:06:56]} 21. Rf4 {[%emt 0:15:41]} Nd5 {[%emt 0:01:35]} 22. Rc1 $1 {[%emt 0:00:34]} Bd6 {[%emt 0:15:09]} ({Much less strong is} 22... Nxf4 23. Qxf4 Bxf2+ 24. Kxf2 $14) (22... Be7 $5 {[%cal Rd5f4]} 23. Rg4 Qxc4 24. Rcxc4 h5 $15) 23. Qxc8 {[%emt 0:02:21]} Rfxc8 {[%emt 0:00:20]} 24. Rfc4 {[%emt 0:00:24]} Rcb8 {[%emt 0:02:41]} 25. Rc6 {[%emt 0:05:09]} (25. R1c2 $11) 25... Bf4 {[%emt 0:02:33]} (25... Be7 $15) 26. Bxf4 $11 {[%emt 0:02:17]} Nxf4 {[%emt 0:00:03]} 27. Rd1 {[%emt 0:05:11]} (27. R1c4 $11 {keeps the balance.} Nd5 28. Ne5) 27... Nd5 {[%emt 0:00:21]} (27... Rxb2 $5 {[%cal Rb2a2]} 28. Ne5 Rb5 $17) 28. Rdc1 {[%emt 0:03:30]} g6 {[%emt 0:05:18]} (28... Kf8 $15) 29. Ne5 {[%emt 0:00:33]} Rxb2 {[%emt 0:04:37]} 30. Rc8+ $1 {[%emt 0:00:02]} Rxc8 {[%emt 0:00:16]} 31. Rxc8+ {[%emt 0:00:01][%mdl 4096] Endgame KRN-KRN} Kg7 {[%emt 0:00:13]} 32. Rc6 {[%emt 0:01:14]} (32. Ra8 $1 $11 {remains equal.}) 32... Rb5 $17 {[%emt 0:00:45]} 33. Nc4 {[%emt 0:01:52]} Rb1+ {[%emt 0:01:01]} 34. Kh2 {[%emt 0:00:01]} Rc1 {[%emt 0:00:26]} 35. Kg3 {[%emt 0:03:17]} (35. Ne5 $17 Rxc6 36. Nxc6) 35... Rc3+ $19 {[%emt 0:01:50]} 36. f3 {[%emt 0:00:47][%cal Oc4e5]} Rc2 {[%emt 0:02:24]} 37. Ne5 {[%emt 0:00:21] [#]} Rxc6 {[%emt 0:00:37]} (37... Re2 $1 $17 {[%cal Re2e5]} 38. Nc4 g5 39. hxg5 hxg5) 38. Nxc6 $17 {[%emt 0:00:02] KN-KN} Kf8 {[%emt 0:03:17]} 39. Nb8 {[%emt 0:01:34]} (39. f4 $15) 39... Nb4 {[%emt 0:02:14]} 40. Kf4 $2 {[%emt 0:01:10][%mdl 8192]} (40. Nd7+ $17 Kg7 41. h5) 40... Ke7 $19 {[%emt 0:05:14]} 41. Ke5 {[%emt 0:07:22]} f6+ {[%emt 0:00:41]} 42. Kd4 {[%emt 0:03:12]} Kd6 {[%emt 0:00:16] ...Nc6+ would be deadly.} 43. Kc4 {[%emt 0:01:30]} Nc6 $2 {[%emt 0:00:08]} (43... Kc7 44. Kxb4 Kxb8) 44. Nxa6 {[%emt 0:00:33]} Nxa5+ {[%emt 0:00:09]} 45. Kd4 {[%emt 0:01:03]} (45. Kd3 $17) 45... e5+ {[%emt 0:00:44]} 46. Kc3 {[%emt 0:00:34]} (46. Ke3 $142) 46... f5 {[%emt 0:00:53]} (46... Nc6 $19 {And now ...Nd4 would win.} 47. Kd3 Nd4) 47. Nb4 $2 {[%emt 0:00:44][%mdl 8192] This costs White the game.} (47. g3 $17) 47... Nc6 {[%emt 0:00:54] ...Nxb4 is the strong threat.} 48. Nc2 {[%emt 0:01:07]} f4 {[%emt 0:00:34]} 49. Kc4 $2 {[%emt 0:01:17]} (49. Kd3) 49... Ne7 {[%emt 0:00:17]} 50. Kd3 {[%emt 0:00:52]} Nf5 {[%emt 0:00:32]} 51. h5 {[%emt 0:03:10]} gxh5 {[%emt 0:00:16][%cal Bg6h5,Bh5h4,Bh4h3][%mdl 32] Strongly threatening ...h4.} 52. Ke4 {[%emt 0:01:31]} Nh4 {[%emt 0:00:20]} (52... Ke6 $142 53. Na1 Ne3) 53. Ne1 {[%emt 0:00:25]} Ke6 {[%emt 0:00:08]} 54. Nd3 {[%emt 0:00:32]} Nxg2 {[%emt 0:00:16] Hoping for ...h4.} 55. Nxe5 {[%emt 0:00:59]} h4 {[%emt 0:00:20] Black mates.} 56. Ng4 {[%emt 0:01:02]} h3 {[%emt 0:00:23]} 57. Nh2 {[%emt 0:01:19]} h5 {[%emt 0:00:20]} 58. Nf1 {[%emt 0:01:16]} Kf6 {[%emt 0:00:12]} 59. Kd3 {[%emt 0:00:24]} Kg5 {[%emt 0:02:10]} 60. Ke2 {[%emt 0:00:55] [#]} Ne3 $1 {[%emt 0:00:23]} 61. Nh2 {[%emt 0:03:03]} Kh4 {[%emt 0:00:16]} 62. Kf2 {[%emt 0:00:30]} Nd1+ {[%emt 0:01:23]} 63. Kg1 {[%emt 0:00:34]} Kg3 {[%emt 0:00:22]} 64. Kh1 {[%emt 0:00:08]} Kf2 {[%emt 0:00:49]} 65. Ng4+ {[%emt 0:03:00]} hxg4 {[%emt 0:00:42]} 66. fxg4 {[%emt 0:00:18]} Kg3 {[%emt 0:00:10]} 67. g5 {[%emt 0:00:10]} Nf2+ {[%emt 0:00:06]} 68. Kg1 {[%emt 0:03:04] Weighted Error Value: White=0.83/Black=0.38} 0-1

[Event "1st FIDE Olympiad DIS 2023"]
[Site "Belgrade"]
[Date "2023.02.03"]
[Round "5.21"]
[White "Sofran, Radu-Pompiliu"]
[Black "Pavicevic, Jovan R"]
[Result "0-1"]
[ECO "C01"]
[WhiteElo "2149"]
[BlackElo "2214"]
[Annotator "TA"]
[PlyCount "114"]
[EventDate "2023.01.30"]
[EventType "team-tourn"]
[EventCountry "SRB"]
[SourceTitle "playchess.com"]
[Source "ChessBase"]
[SourceQuality "1"]
[WhiteTeam "Romania"]
[BlackTeam "Serbia"]
[WhiteTeamCountry "ROU"]
[BlackTeamCountry "SRB"]
[TimeControl "40/5400+30:1800+30"]

{[%evp 9,114,0,0,-19,0,-14,2,-12,0,0,0,0,-1,-14,-16,-9,-12,-14,-21,-33,-28,-32,-31,-34,-28,-39,-39,-35,-26,-70,-41,-89,-90,-102,-86,-81,-59,-54,-6,-8,-8,-5,-6,-37,-40,-22,-14,-13,-10,-16,0,0,0,0,0,0,0,-9,-6,-6,0,-4,0,-21,0,-13,0,0,0,-14,0,0,0,0,0,0,0,0,0,-151,-151,-206,-195,-153,-177,-330,-305,-491,-320,-839,-839,-762,-652,-924,-856,-1188,-995,-1048,-565,-1167,-903,-2533,-2295,-29987,-29988,-29993,-29994]} 1. e4 {[%emt 0:00:18]} e6 {[%emt 0:00:18]} 2. Nc3 {[%emt 0:00:15]} d5 {[%emt 0:00:08]} 3. exd5 {[%emt 0:00:30]} exd5 {[%emt 0:00:05]} 4. d4 {[%emt 0:00:36]} c6 {[%emt 0:00:10]} 5. Nf3 {[%emt 0:00:31]} Bd6 {[%emt 0:00:10]} 6. Bg5 {[%emt 0:00:35][%cal Bc1g5,Bg5h4,Bh4g3][%mdl 32] C01: French: Exchange Variation.} f6 {[%emt 0:00:09]} 7. Bh4 {[%emt 0:00:07]} Bf5 {[%emt 0:00:38]} 8. Bd3 {[%emt 0:00:38] The position is equal.} Ne7 {[%emt 0:00:14]} 9. Bg3 {[%emt 0:00:11]} Bxd3 {[%emt 0:00:52]} 10. Qxd3 {[%emt 0:00:03]} Na6 {[%emt 0:00:12]} 11. a3 {[%emt 0:00:19]} Qd7 {[%emt 0:00:36]} 12. Bxd6 {[%emt 0:00:31]} Qxd6 {[%emt 0:00:05] [#]} 13. h3 $146 {[%emt 0:00:27]} ({Predecessor:} 13. O-O O-O 14. Rfe1 Rae8 15. Re3 Ng6 16. Rae1 Rxe3 17. Rxe3 Qd7 18. Ne2 Nc7 19. h4 {½-½ Joensen,J (1646)-Mortensen,H (1796) FAI-chT3 1516 2015 (5.1)}) 13... Nc7 {[%emt 0:00:17]} 14. Qe3 {[%emt 0:01:15]} O-O-O {[%emt 0:00:59]} 15. O-O-O {[%emt 0:00:12]} Nf5 {[%emt 0:01:31]} 16. Qd3 {[%emt 0:00:36]} Qd7 {[%emt 0:00:36]} 17. Rde1 {[%emt 0:00:42]} Nd6 {[%emt 0:03:21]} 18. Nd2 {[%emt 0:00:41]} Rde8 {[%emt 0:00:24]} 19. Kd1 {[%emt 0:01:15]} h6 {[%emt 0:01:16]} 20. f3 {[%emt 0:00:21]} (20. Kc1 $15 {was preferrable.}) 20... Ne6 $17 {[%emt 0:00:43]} 21. g3 {[%emt 0:00:57] Dodges Nf4} Re7 {[%emt 0:00:43]} 22. Re2 {[%emt 0:00:26]} Rhe8 {[%emt 0:01:00][%cal Og7g6]} 23. Rhe1 {[%emt 0:00:02]} Nf8 {[%emt 0:00:47]} (23... g5 $15) 24. Rxe7 $11 {[%emt 0:00:13]} Rxe7 {[%emt 0:00:03]} 25. Rxe7 {[%emt 0:00:16]} Qxe7 {[%emt 0:00:02]} 26. Qe2 {[%emt 0:00:15]} Qd7 {[%emt 0:00:22]} 27. g4 {[%emt 0:00:16]} Ng6 {[%emt 0:01:19]} 28. Qe3 {[%emt 0:00:38]} Kd8 {[%emt 0:00:30]} 29. Ne2 {[%emt 0:00:30]} Nf7 {[%emt 0:00:30]} 30. Nf4 {[%emt 0:00:30]} Nxf4 {[%emt 0:00:30]} 31. Qxf4 {[%emt 0:00:30][%mdl 4096] Endgame KQN-KQN} Nd6 {[%emt 0:00:30]} 32. Qe3 {[%emt 0:00:30]} Qe7 {[%emt 0:00:30]} 33. Qxe7+ {[%emt 0:00:30]} Kxe7 {[%emt 0:00:30] KN-KN} 34. Ke2 {[%emt 0:00:30]} Ke6 {[%emt 0:00:30]} 35. Ke3 {[%emt 0:00:30]} Ke7 {[%emt 0:00:56]} 36. Ke2 {[%emt 0:02:47]} Ke6 {[%emt 0:00:37]} 37. Ke3 {[%emt 0:00:22]} b6 {[%emt 0:00:30]} 38. b3 {[%emt 0:00:30]} a5 {[%emt 0:00:30]} 39. Nf1 {[%emt 0:00:30]} Nb5 {[%emt 0:06:32]} 40. a4 {[%emt 0:00:37]} Nd6 41. Nd2 {[%emt 0:32:26]} h5 {[%emt 0:32:25]} 42. Nf1 {[%emt 0:00:39]} h4 {[%emt 0:01:01]} 43. Nd2 {[%emt 0:00:23]} g6 {[%emt 0:01:06][%cal Bg7g6,Bg6g5][%mdl 32]} 44. Kf4 $2 {[%emt 0:00:48] [#]} (44. f4 $11) 44... Nf7 $1 $17 {[%emt 0:01:00] ...Ng5 is the strong threat.} 45. Ke3 {[%emt 0:02:20]} Ng5 {[%emt 0:00:34]} 46. f4 {[%emt 0:00:08]} Nxh3 {[%emt 0:00:51]} 47. Nf3 $2 {[%emt 0:00:34]} (47. c4 {was the only defense.}) 47... g5 $19 {[%emt 0:00:51]} 48. f5+ {[%emt 0:00:17] [#]} (48. fxg5 fxg5 49. Ne5) 48... Kd6 {[%emt 0:00:30] Hoping for ...c5.} 49. c3 $2 {[%emt 0:01:00]} (49. Nh2) 49... b5 {[%emt 0:00:40]} 50. Nd2 {[%emt 0:00:39]} Nf4 {[%emt 0:02:15]} 51. Nf3 {[%emt 0:00:11][%cal Of3h4]} h3 {[%emt 0:02:53]} 52. Nh2 {[%emt 0:00:08]} Kc7 {[%emt 0:00:03][%cal Oc6c5] Strongly threatening ...c5!} 53. Nf3 {[%emt 0:00:11]} Kb6 {[%emt 0:00:08]} 54. Nh2 {[%emt 0:00:16]} c5 {[%emt 0:00:11][%cal Bc6c5,Bc5c4,Bc4b3,Bb3b2][%mdl 32]} 55. Nf3 {[%emt 0:00:21]} c4 {[%emt 0:00:41]} 56. Kf2 {[%emt 0:01:24]} cxb3 {[%emt 0:00:18]} 57. axb5 {[%emt 0:00:41]} b2 {[%emt 0:00:07] Weighted Error Value: White=0.72/Black=0.18 (very precise)} 0-1

[Event "1st FIDE Olympiad DIS 2023"]
[Site "Belgrade"]
[Date "2023.02.03"]
[Round "5.22"]
[White "Tonic, Milos"]
[Black "Bursuc, Mihai"]
[Result "1-0"]
[ECO "E71"]
[WhiteElo "2018"]
[BlackElo "1823"]
[Annotator "TA"]
[PlyCount "57"]
[EventDate "2023.01.30"]
[EventType "team-tourn"]
[EventCountry "SRB"]
[SourceTitle "playchess.com"]
[Source "ChessBase"]
[SourceQuality "1"]
[WhiteTeam "Serbia"]
[BlackTeam "Romania"]
[WhiteTeamCountry "SRB"]
[BlackTeamCountry "ROU"]
[TimeControl "40/5400+30:1800+30"]

{[%evp 13,57,26,54,55,55,54,76,68,99,98,163,159,153,143,212,200,197,191,208,208,200,194,181,186,264,163,165,145,158,156,157,142,143,133,133,134,234,202,181,172,294,291,279,279,1462,1386]} 1. c4 {[%emt 0:00:08]} Nf6 {[%emt 0:00:09]} 2. Nc3 {[%emt 0:00:20]} g6 {[%emt 0:00:15]} 3. d4 {[%emt 0:00:22]} Bg7 {[%emt 0:00:12]} 4. e4 {[%emt 0:00:32]} d6 {[%emt 0:00:11]} 5. h3 {[%emt 0:00:32]} O-O {[%emt 0:00:41]} 6. Be3 {[%emt 0:00:43]} e5 {[%emt 0:00:59]} 7. d5 {[%emt 0:01:18]} a5 {[%emt 0:00:22]} 8. g4 {[%emt 0:00:28] E71: King's Indian: 4 e4 d6 5 h3.} Na6 {[%emt 0:00:33]} 9. Nge2 {[%emt 0:00:56]} Bd7 {[%emt 0:05:12]} 10. Ng3 {[%emt 0:08:59] White is better.} Ne8 {[%emt 0:02:21]} 11. h4 {[%emt 0:05:29][%cal Bh3h4,Bh4h5][%mdl 32] [#]} Qc8 $146 {[%emt 0:05:13]} (11... c6 $16 {was necessary.}) ({Predecessor:} 11... c6 12. Be2 Nac7 13. Qd2 cxd5 14. exd5 f5 15. gxf5 gxf5 16. Bg5 Bf6 17. Nh5 Bxg5 18. hxg5 {1-0 Gordon,S (2544)-Iyengar,I (2025) Harrow Poobalasingam op 1st rapid 2018 (2)}) 12. Be2 {[%emt 0:01:10]} Nc5 {[%emt 0:01:19]} 13. h5 {[%emt 0:03:28]} f5 {[%emt 0:02:55]} (13... c6 $16 14. f3 a4) 14. gxf5 {[%emt 0:03:09]} gxf5 {[%emt 0:00:10]} 15. exf5 {[%emt 0:02:03]} Bxf5 {[%emt 0:00:15]} 16. Rg1 {[%emt 0:02:27]} Kh8 {[%emt 0:00:55] [#]} 17. Qd2 $1 {[%emt 0:02:34]} a4 {[%emt 0:05:21]} 18. O-O-O {[%emt 0:10:02]} Bg4 {[%emt 0:02:31]} (18... e4 {might work better.} 19. h6 Bf6) 19. Nge4 {[%emt 0:01:45]} Nxe4 {[%emt 0:05:52]} 20. Nxe4 {[%emt 0:02:58]} Bxe2 {[%emt 0:01:25]} 21. Qxe2 {[%emt 0:00:07]} Qf5 {[%emt 0:01:49]} 22. h6 {[%emt 0:06:27]} Bf6 {[%emt 0:02:36]} (22... Qxe4 $2 23. hxg7+ Nxg7 24. Rxg7 $18) 23. Qg4 $36 {[%emt 0:03:29][%mdl 2048] White is really pushing. White is much more active.} Qxg4 {[%emt 0:01:30]} 24. Rxg4 {[%emt 0:00:05]} Rg8 {[%emt 0:02:07]} (24... Rc8 $16 25. Kc2 c6) 25. Rdg1 {[%emt 0:05:46][%csl Gg1][%cal Rg4g8,Bd1g1,Bg1g4,Bg4g7][%mdl 32]} Rxg4 {[%emt 0:00:47]} 26. Rxg4 {[%emt 0:00:04]} Rd8 {[%emt 0:00:45]} (26... c6 $142 27. dxc6 bxc6) 27. Nxf6 $18 {[%emt 0:03:46][%mdl 64] Deflection} Nxf6 {[%emt 0:00:51]} 28. Rg7 {[%emt 0:00:05] Hoping for Bg5.} Rd7 $2 {[%emt 0:00:21] [#]} (28... Rc8 29. Rf7 Ne4) 29. Bg5 $1 {[%emt 0:00:10] Black got outplayed after the opening.   Weighted Error Value: White=0.12 (very precise) /Black=0.25 (precise)} 1-0

[Event "1st FIDE Olympiad DIS 2023"]
[Site "Belgrade"]
[Date "2023.02.03"]
[Round "5.23"]
[White "Pribeanu, Mihail-Dacian"]
[Black "Zivic, Dragan"]
[Result "1/2-1/2"]
[WhiteElo "2134"]
[BlackElo "2186"]
[Annotator "TA"]
[PlyCount "31"]
[EventDate "2023.01.30"]
[EventType "team-tourn"]
[EventCountry "SRB"]
[SourceTitle "playchess.com"]
[Source "ChessBase"]
[SourceQuality "1"]
[WhiteTeam "Romania"]
[BlackTeam "Serbia"]
[WhiteTeamCountry "ROU"]
[BlackTeamCountry "SRB"]
[TimeControl "40/5400+30:1800+30"]

{[%evp 10,18,0,-9,0,-9,-22,-24,-11,-17,-18]} 1. Nf3 {[%emt 0:00:07]} c5 {[%emt 0:00:54]} 2. g3 {[%emt 0:01:09]} Nc6 {[%emt 0:00:43]} 3. Bg2 {[%emt 0:00:24]} d6 {[%emt 0:00:36]} 4. O-O {[%emt 0:04:21]} g6 {[%emt 0:04:33]} 5. e4 {[%emt 0:11:38]} Bg7 {[%emt 0:02:21]} 6. Re1 {[%emt 0:00:12]} e5 {[%emt 0:00:51] B50: Sicilian: 2...d6, Miscellaneous.} 7. Nc3 {[%emt 0:01:28]} Nge7 {[%emt 0:00:30]} 8. d3 {[%emt 0:00:14]} O-O {[%emt 0:00:43]} 9. Nd2 {[%emt 0:00:19]} f5 {[%emt 0:01:57] [#] A rather calm draw.   Weighted Error Value: White=0.02 (flawless) /Black=0.00 (flawless)} {Predecessor:} 10. exf5 $146 gxf5 11. Nd5 Nxd5 12. Bxd5+ Kh8 13. Qh5 Bd7 14. Nf3 Qe8 15. Qh4 Qg6 16. Bd2 {0-1 Andrews,T (2244)-Goryachkina,A (2593) Titled Tuesday intern op 16th Feb blitz 2021 (8)} 1/2-1/2

[Event "1st FIDE Olympiad DIS 2023"]
[Site "Belgrade"]
[Date "2023.02.03"]
[Round "5.24"]
[White "Ilic, Slobodan S"]
[Black "Morariu, Ionel"]
[Result "1-0"]
[ECO "A33"]
[WhiteElo "2027"]
[BlackElo "1915"]
[Annotator "TA"]
[PlyCount "77"]
[EventDate "2023.01.30"]
[EventType "team-tourn"]
[EventCountry "SRB"]
[SourceTitle "playchess.com"]
[Source "ChessBase"]
[SourceQuality "1"]
[WhiteTeam "Serbia"]
[BlackTeam "Romania"]
[WhiteTeamCountry "BIH"]
[BlackTeamCountry "ROU"]
[TimeControl "40/5400+30:1800+30"]

{[%evp 17,77,47,48,39,45,46,89,84,83,33,100,90,88,57,85,33,125,122,388,377,368,363,364,362,390,297,286,221,218,220,197,163,164,186,270,228,233,235,220,221,229,189,435,416,403,407,405,396,1208,1196,29993,230,414,411,410,406,386,395,671,639,29985,29986]} 1. Nf3 {[%emt 0:00:12]} Nf6 {[%emt 0:00:40]} 2. g3 {[%emt 0:00:46]} e6 {[%emt 0:00:34]} 3. Bg2 {[%emt 0:00:25]} Be7 {[%emt 0:00:19]} 4. O-O {[%emt 0:01:30]} O-O {[%emt 0:00:11]} 5. c4 {[%emt 0:02:01]} c5 {[%emt 0:00:11]} 6. Nc3 {[%emt 0:01:11]} Nc6 {[%emt 0:00:07]} 7. d4 {[%emt 0:02:02]} cxd4 {[%emt 0:00:16]} 8. Nxd4 {[%emt 0:00:18]} a6 {[%emt 0:03:02]} 9. b3 {[%emt 0:01:17]} Qa5 {[%emt 0:01:07]} 10. Bb2 {[%emt 0:01:07] A33: Symmetrical English: 2 Nf3 Nf6 3 d4 cxd4 4 Nxd4 e6 5 Nc3 Nc6.} Rd8 {[%emt 0:03:37]} 11. e3 {[%emt 0:04:40] [#]} Bb4 $146 {[%emt 0:03:32]} ({Predecessor:} 11... Rb8 12. Re1 Nxd4 13. exd4 d5 14. c5 b6 15. Na4 bxc5 16. Nxc5 Bxc5 17. dxc5 Qxc5 18. Bxf6 gxf6 {1-0 Rodriguez Lopez,R (2312)-Espineira Gonzalez,D (2267) Pontevedra op 21st 2008 (6)}) 12. Rc1 {[%emt 0:02:15] White is better.} Bf8 {[%emt 0:04:46]} 13. Qe2 {[%emt 0:09:55]} (13. Na4 $16) 13... Qc7 {[%emt 0:02:31]} (13... Nxd4 $14 14. exd4 d5) 14. Rfd1 $16 {[%emt 0:02:33]} d6 {[%emt 0:01:28]} 15. Qd3 {[%emt 0:08:19][%cal Oc3d5]} Bd7 {[%emt 0:01:42]} 16. Qb1 {[%emt 0:02:41]} (16. Nd5 $16 exd5 17. cxd5 Nxd5 18. Bxd5) 16... Rac8 {[%emt 0:00:38] [#]} (16... Nxd4 $14 17. exd4 (17. Rxd4 g6 $14) 17... g6) 17. Nd5 $1 {[%emt 0:06:10] White has more active pieces.} Qb8 {[%emt 0:04:00][%mdl 8192] Black cannot hold the game after this.} (17... Nxd5 $16 18. cxd5 exd5) 18. Nxf6+ {[%emt 0:02:06]} gxf6 {[%emt 0:00:36]} 19. Nxc6 {[%emt 0:00:34]} Bxc6 {[%emt 0:03:07]} 20. Bxf6 {[%emt 0:00:51]} Rd7 {[%emt 0:06:51] Black is weak on the dark squares} 21. Bxc6 {[%emt 0:00:38]} Rxc6 {[%emt 0:00:33]} 22. Qe4 {[%emt 0:00:22] Qg4+ would kill now.} Bg7 {[%emt 0:00:53]} 23. Qg4 $40 {[%emt 0:00:04][%csl Gf6][%cal Rg4g7][%mdl 128] Black is in trouble.} Qf8 {[%emt 0:01:11]} 24. Rd2 {[%emt 0:03:42]} h5 {[%emt 0:05:47]} 25. Qh4 {[%emt 0:04:54]} (25. Qxh5 Bxf6 26. Rd3 Rd8 $17) 25... Rc5 {[%emt 0:03:38]} (25... Bxf6 $142 26. Qxf6 Qg7) 26. Rcd1 {[%emt 0:01:28]} Bxf6 {[%emt 0:05:05]} 27. Qxf6 {[%emt 0:00:35]} Rf5 {[%emt 0:02:27]} 28. Qc3 {[%emt 0:02:52]} h4 {[%emt 0:05:13]} 29. Rd4 {[%emt 0:04:05] And now Rg4+ would win.} hxg3 $2 {[%emt 0:02:06]} (29... Qg7 {is a better defense.} 30. e4 Rc5) 30. Rg4+ $18 {[%emt 0:00:20][%mdl 64] [#] Zwischenzug, Double Attack} (30. fxg3 Qg7 31. Qd3 Qe5 $16) 30... Kh7 {[%emt 0:01:03]} 31. Rh4+ {[%emt 0:02:06]} ({Not} 31. Rxg3 Rh5 32. e4 Qh6 $18) (31. fxg3 Qh6 32. Qd3 (32. Rh4 Rh5 $16) 32... Kh8 33. Qc3+ (33. Rh4 Rh5 $16) 33... Kh7 $18) (31. hxg3 Rh5 32. Qf6 Qh8 33. Qxh8+ Kxh8 $18) 31... Kg6 {[%emt 0:01:24]} 32. hxg3 {[%emt 0:00:29] Kg2 would be deadly.} Rh5 $2 {[%emt 0:03:47]} (32... Rg5 33. Qd4 (33. Rh8 Qg7 $18) 33... e5) 33. Rxh5 {[%emt 0:02:43]} Kxh5 {[%emt 0:00:19][%mdl 4096] Endgame KQR-KQR} 34. Kg2 $2 {[%emt 0:00:48]} (34. Qf6 {mates} Qg7 35. Qxg7 f5 36. Qxd7 Kh6 37. Qxe6+ Kg7 38. Rxd6 Kf8 39. Rd7 b5 40. Qf7#) 34... f6 $2 {[%emt 0:04:35]} (34... f5 {might work better.} 35. Rd4 Kg6) 35. Qd4 {[%emt 0:03:46] Intending Qe4 and mate.} Kg6 {[%emt 0:01:56]} 36. Qe4+ {[%emt 0:00:58]} Kf7 {[%emt 0:01:00]} 37. Rh1 {[%emt 0:02:18] aiming for Rh7+.} f5 $2 {[%emt 0:02:13]} (37... Ke8 38. Qxe6+ Kd8) 38. Rh7+ {[%emt 0:01:39][%mdl 64] Skewer} Kf6 {[%emt 0:00:01]} 39. Qh4+ {[%emt 0:00:21] Weighted Error Value: White=0.32/Black=1.02} (39. Rxd7 $2 {loses.} fxe4 40. Rxb7 d5 41. cxd5 exd5 $19) 1-0